bitfinex-derivatives/quotes_SOLF0:USTF0_20241016
["timestamp","ask_amount","ask_price","bid_price","bid_amount"]
[1729085129677,3.2145,155.57,155.56,9.88]
[1729085132087,9.88,155.61,155.53,3.2151]
[1729085132088,3.2147,155.56,155.53,3.2151]
[1729085132281,3.2147,155.56,155.55,9.88]
[1729085134901,9.88,155.61,155.55,9.88]
[1729085135096,3.2145,155.57,155.56,9.88]
[1729085136610,9.88,155.61,155.51,4.205]
[1729085136896,9.88,155.58,155.52,9.88]
[1729085137495,3.2152,155.54,155.52,9.88]
[1729085137800,9.88,155.58,155.52,9.88]
[1729085138101,3.2157,155.51,155.5,15.02]
[1729085138297,9.88,155.55,155.48,65.74642766]
[1729085138504,3.2161,155.49,155.48,5.14]
[1729085138699,12.7076,155.54,155.48,5.14]
[1729085138901,12.7076,155.54,155.5,9.88]
[1729085139594,3.2157,155.51,155.49,9.88]
[1729085139799,12.7076,155.54,155.49,9.88]
[1729085140408,3.2153,155.53,155.49,9.88]
[1729085140598,12.7076,155.54,155.49,9.88]
[1729085141306,3.2159,155.5,155.49,9.88]
[1729085142103,9.88,155.52,155.45,3.2168]
[1729085142404,7.9676,155.54,155.44,9.88]
[1729085142405,9.88,155.49,155.44,9.88]
[1729085142796,3.2168,155.46,155.44,9.88]
[1729085145399,3.2165,155.47,155.44,13.0969]
[1729085145905,9.88,155.5,155.44,9.88]
[1729085146114,9.88,155.5,155.43,5.14]
[1729085146115,1.4226,155.53,155.47,9.88]
[1729085146497,11.3026,155.53,155.48,9.88]
[1729085147607,3.2161,155.49,155.48,9.88]
[1729085153611,3.216,155.5,155.48,9.88]
[1729085153808,6.5626,155.53,155.48,9.88]
[1729085154009,9.88,155.52,155.48,9.88]
[1729085154205,9.88,155.52,155.47,9.88]
[1729085154206,3.2163,155.48,155.47,9.88]
[1729085154411,9.88,155.51,155.45,9.88]
[1729085154608,3.2164,155.48,155.45,13.0967]
[1729085156216,3.2162,155.49,155.47,9.88]
[1729085157214,9.88,155.52,155.47,9.88]
[1729085157415,3.2163,155.48,155.47,9.88]
[1729085163610,11.3026,155.53,155.47,9.88]
[1729085163816,11.3026,155.53,155.48,9.88]
[1729085164218,3.216,155.5,155.48,9.88]
[1729085164827,3.2161,155.49,155.48,9.88]
[1729085170028,11.3026,155.53,155.48,9.88]
[1729085170230,1.4226,155.53,155.48,9.88]
[1729085170422,17.8476,155.54,155.49,3.2161]
[1729085170621,17.8476,155.54,155.48,9.88]
[1729085171534,17.8476,155.54,155.48,13.0962]
[1729085172226,7.9676,155.54,155.48,9.88]
[1729085172435,2.8276,155.54,155.5,3.2159]
[1729085172637,3.2156,155.52,155.49,9.88]
[1729085172824,3.2156,155.52,155.5,3.2158]
[1729085176648,2.8276,155.54,155.5,9.88]
[1729085177439,3.2156,155.52,155.5,13.0958]
[1729085177637,2.8276,155.54,155.5,9.88]
[1729085178736,3.2156,155.52,155.5,9.88]
[1729085179137,2.8276,155.54,155.5,9.88]
[1729085180537,3.2157,155.51,155.5,9.88]
[1729085181640,3.2159,155.5,155.49,9.88]
[1729085182734,12.7076,155.54,155.49,9.88]
[1729085182935,9.88,155.52,155.47,15.02]
[1729085183142,9.88,155.5,155.44,9.88]
[1729085183341,9.88,155.5,155.44,15.02]
[1729085183938,3.2167,155.46,155.44,15.02]
[1729085184640,3.2172,155.44,155.42,1.4126]
[1729085184830,9.88,155.43,155.38,15.02]
[1729085185037,9.88,155.41,155.36,5.14]
[1729085185336,3.2184,155.38,155.36,5.14]
[1729085185737,9.88,155.41,155.36,5.14]
[1729085185929,3.2182,155.39,155.36,8.3587]
[1729085186135,3.2182,155.39,155.36,18.2387]
[1729085186330,9.88,155.44,155.38,9.88]
[1729085186533,3.2173,155.43,155.4,9.88]
[1729085186738,6.4992,155.45,155.41,9.88]
[1729085186944,3.2173,155.43,155.41,9.88]
[1729085187143,3.2173,155.43,155.4,13.0978]
[1729085190347,16.3792,155.45,155.36,5.14]
[1729085190548,9.88,155.42,155.37,13.0984]
[1729085190944,9.88,155.42,155.37,9.88]
[1729085191145,3.2184,155.38,155.36,9.88]
[1729085191446,9.88,155.41,155.36,9.88]
[1729085191749,3.2183,155.39,155.36,13.0988]
[1729085194042,3.2183,155.39,155.36,3.2188]
[1729085194243,9.88,155.4,155.34,9.88]
[1729085195645,3.2187,155.37,155.34,13.0992]
[1729085196345,5.14,155.44,155.36,9.88]
[1729085196540,9.88,155.43,155.38,9.88]
[1729085197649,3.2181,155.4,155.38,9.88]
[1729085199453,3.2178,155.41,155.38,13.0983]
[1729085200452,16.3792,155.45,155.4,9.88]
[1729085200644,6.4992,155.45,155.41,9.88]
[1729085201352,3.2171,155.44,155.41,13.0977]
[1729085202243,3.2171,155.44,155.41,13.0976]
[1729085202549,1.3592,155.45,155.41,9.88]
[1729085202747,11.3062,155.49,155.45,3.2168]
[1729085202956,11.3062,155.49,155.45,9.88]
[1729085203154,3.2168,155.46,155.44,9.88]
[1729085203654,11.3062,155.49,155.44,13.097]
[1729085204954,1.4262,155.49,155.45,9.88]
[1729085205756,3.2165,155.47,155.45,9.88]
[1729085206358,3.2165,155.47,155.45,13.0969]
[1729085208455,15.02,155.53,155.46,9.88]
[1729085208655,9.88,155.51,155.45,9.88]
[1729085208955,3.2171,155.45,155.43,15.02]
[1729085209162,3.2171,155.45,155.43,9.88]
[1729085209555,3.2171,155.45,155.43,13.0972]
[1729085209863,9.88,155.48,155.43,13.0972]
[1729085210061,3.2168,155.46,155.43,13.0972]
[1729085210852,3.2168,155.46,155.43,3.2172]
[1729085211051,3.2168,155.46,155.43,13.0972]
[1729085211555,3.2169,155.45,155.43,13.0972]
[1729085213958,3.2168,155.46,155.44,9.88]
[1729085214668,11.2642,155.52,155.45,9.88]
[1729085214961,5.14,155.51,155.45,13.0968]
[1729085215163,9.88,155.5,155.44,9.88]
[1729085215566,3.2167,155.47,155.46,9.88]
[1729085216862,5.14,155.51,155.46,9.88]
[1729085217080,9.88,155.53,155.47,9.88]
[1729085217370,9.88,155.53,155.49,9.88]
[1729085217563,3.2158,155.51,155.49,9.88]
[1729085218370,3.2159,155.5,155.49,9.88]
[1729085219363,3.2166,155.47,155.45,5.14]
[1729085219575,9.88,155.51,155.45,15.02]
[1729085219965,3.2166,155.47,155.45,18.2369]
[1729085220262,9.88,155.48,155.42,15.02]
[1729085220462,9.88,155.48,155.42,9.88]
[1729085220670,9.88,155.47,155.42,9.88]
[1729085220863,9.88,155.44,155.39,9.88]
[1729085221071,3.2176,155.42,155.39,13.098]
[1729085221270,9.88,155.44,155.39,9.88]
[1729085221774,3.2179,155.41,155.39,9.88]
[1729085224777,3.2175,155.42,155.39,13.098]
[1729085225277,3.217,155.45,155.41,13.0975]
[1729085225579,9.88,155.47,155.43,9.88]
[1729085225770,3.2171,155.45,155.43,9.88]
[1729085230278,3.2171,155.45,155.43,13.0973]
[1729085238985,9.88,155.49,155.44,9.88]
[1729085239183,9.88,155.49,155.45,3.2168]
[1729085239684,3.2166,155.47,155.45,3.2168]
[1729085240283,9.88,155.49,155.44,9.88]
[1729085240483,9.88,155.5,155.45,9.88]
[1729085241087,3.2165,155.47,155.45,13.0968]
[1729085243890,1.3736,155.51,155.46,13.0967]
[1729085244391,3.2162,155.49,155.46,13.0967]
[1729085244588,3.2162,155.49,155.46,9.88]
[1729085244787,9.88,155.55,155.48,9.88]
[1729085245091,9.88,155.55,155.5,9.88]
[1729085245092,3.2154,155.53,155.5,9.88]
[1729085245988,3.2154,155.53,155.5,13.0958]
[1729085246883,9.88,155.54,155.49,9.88]
[1729085247092,9.88,155.51,155.47,5.12]
[1729085247686,3.2162,155.49,155.47,5.12]
[1729085248492,9.88,155.51,155.45,18.2168]
[1729085249386,3.2162,155.49,155.47,9.88]
[1729085250986,3.2163,155.48,155.47,9.88]
[1729085251989,3.216,155.5,155.47,13.0964]
[1729085253291,1.3817,155.59,155.49,13.0959]
[1729085253292,3.2156,155.52,155.49,13.0959]
[1729085253496,15.0,155.56,155.51,9.88]
[1729085253693,9.88,155.52,155.46,9.88]
[1729085253896,3.2162,155.49,155.46,13.0965]
[1729085254696,3.2162,155.49,155.47,3.2165]
[1729085254898,3.2162,155.49,155.47,13.0965]
[1729085255194,3.2162,155.49,155.47,9.88]
[1729085258305,3.2162,155.49,155.47,13.0964]
[1729085259509,9.88,155.53,155.48,3.2163]
[1729085260205,3.2159,155.51,155.48,3.2163]
[1729085260396,9.88,155.53,155.48,3.2163]
[1729085261397,3.2159,155.5,155.48,3.2163]
[1729085264711,3.2159,155.5,155.47,9.88]
[1729085265016,3.2159,155.5,155.47,13.0964]
[1729085267216,3.2159,155.5,155.47,9.88]
[1729085267415,3.2158,155.51,155.49,9.88]
[1729085268116,3.2156,155.52,155.49,9.88]
[1729085268320,9.88,155.55,155.5,9.88]
[1729085269711,9.88,155.55,155.49,13.096]
[1729085269908,3.2158,155.51,155.49,13.096]
[1729085270316,9.88,155.52,155.47,13.0964]
[1729085270515,3.216,155.5,155.47,13.0964]
[1729085271120,3.2158,155.51,155.47,9.88]
[1729085271421,9.88,155.52,155.47,9.88]
[1729085272022,3.2162,155.49,155.47,9.88]
[1729085272718,3.2162,155.49,155.47,13.0965]
[1729085273618,3.2162,155.49,155.47,9.88]
[1729085274022,9.88,155.52,155.47,9.88]
[1729085274322,9.88,155.52,155.43,15.0]
[1729085274323,9.88,155.48,155.43,15.0]
[1729085274629,3.2168,155.46,155.43,18.2173]
[1729085275825,3.2164,155.48,155.45,3.2169]
[1729085276028,3.2164,155.48,155.47,9.88]
[1729085277325,3.2161,155.49,155.47,9.88]
[1729085277621,5.12,155.52,155.48,13.0962]
[1729085277824,15.0,155.55,155.48,13.0962]
[1729085278025,3.2157,155.51,155.5,9.88]
[1729085280319,3.2152,155.54,155.52,3.2154]
[1729085280522,3.2152,155.54,155.53,9.88]
[1729085282032,9.88,155.54,155.37,65.79216964]
[1729085282228,9.88,155.48,155.42,9.88]
[1729085283122,9.88,155.48,155.44,9.88]
[1729085283322,12.5612,155.5,155.44,9.88]
[1729085283736,12.5612,155.5,155.42,8.3373]
[1729085283737,3.217,155.45,155.42,8.3373]
[1729085283934,3.217,155.45,155.44,9.88]
[1729085285923,1.4082,155.53,155.44,15.44]
[1729085286425,1.4082,155.53,155.45,3.2168]
[1729085286621,1.4082,155.53,155.46,5.12]
[1729085286821,3.2162,155.49,155.46,5.12]
[1729085287237,3.2162,155.49,155.46,8.3367]
[1729085288035,1.4082,155.53,155.46,5.12]
[1729085288229,3.2165,155.47,155.46,5.12]
[1729085288433,15.44,155.52,155.44,5.1]
[1729085289732,3.2166,155.47,155.44,8.3171]
[1729085290132,15.44,155.52,155.44,8.3171]
[1729085290531,15.44,155.52,155.44,5.1]
[1729085290836,3.2169,155.45,155.44,5.1]
[1729085292536,3.2173,155.44,155.41,3.2177]
[1729085292730,3.2173,155.44,155.42,5.1]
[1729085292927,2.7137,155.5,155.42,5.1]
[1729085293229,3.217,155.45,155.42,8.3175]
[1729085293437,2.7137,155.5,155.42,5.1]
[1729085293737,3.2172,155.44,155.42,5.1]
[1729085296140,2.7137,155.5,155.42,5.1]
[1729085296439,3.217,155.45,155.42,8.3174]
[1729085297035,3.2171,155.44,155.42,8.3174]
[1729085298045,2.7137,155.5,155.42,5.1]
[1729085298338,3.2166,155.47,155.44,15.44]
[1729085299039,2.7137,155.5,155.44,15.44]
[1729085299230,1.4082,155.53,155.46,15.44]
[1729085299542,1.4082,155.53,155.46,20.54]
[1729085299842,5.1,155.55,155.46,20.54]
[1729085300133,2.8139,155.56,155.5,15.44]
[1729085300337,3.2152,155.54,155.51,3.2155]
[1729085303037,2.8139,155.56,155.33,9.6578]
[1729085303241,3.2162,155.49,155.46,3.2167]
[1729085303436,20.54,155.55,155.45,15.44]
[1729085303734,20.54,155.55,155.45,20.54]
[1729085303934,3.2162,155.49,155.45,23.7568]
[1729085306942,3.2163,155.48,155.45,23.7568]
[1729085308237,20.54,155.55,155.45,23.7568]
[1729085308440,20.54,155.55,155.45,20.54]
[1729085308946,3.2162,155.49,155.46,3.2166]
[1729085309148,20.54,155.55,155.45,20.54]
[1729085309442,20.54,155.55,155.45,15.44]
[1729085309643,15.44,155.53,155.45,15.44]
[1729085309844,1.4483,155.52,155.45,15.44]
[1729085310546,3.2166,155.47,155.45,15.44]
[1729085310844,1.4483,155.52,155.44,5.1]
[1729085311041,15.44,155.51,155.43,15.44]
[1729085311241,15.44,155.51,155.42,5.1]
[1729085311441,2.8193,155.5,155.42,5.1]
[1729085311638,5.1,155.49,155.42,5.1]
[1729085312344,3.2172,155.44,155.42,5.1]
[1729085312746,5.1,155.49,155.42,5.1]
[1729085314450,3.2172,155.44,155.42,5.1]
[1729085321943,3.2172,155.44,155.43,9.88]
[1729085322349,2.8193,155.5,155.43,9.88]
[1729085322542,2.8193,155.5,155.47,9.88]
[1729085322951,3.2163,155.48,155.47,9.88]
[1729085324051,2.8193,155.5,155.47,9.88]
[1729085324355,3.2159,155.5,155.49,9.88]
[1729085326749,4.1971,155.56,155.49,9.88]
[1729085326949,4.1971,155.56,155.52,9.88]
[1729085327656,3.2154,155.53,155.52,9.88]
[1729085327851,3.2154,155.53,155.5,23.7557]
[1729085328151,15.44,155.51,155.39,15.44]
[1729085328351,15.44,155.49,155.39,15.44]
[1729085328555,6.4873,155.48,155.39,15.44]
[1729085328853,3.2175,155.43,155.39,18.658]
[1729085329555,3.2171,155.45,155.41,3.2177]
[1729085330459,3.2172,155.44,155.4,3.2179]
[1729085332044,6.4873,155.48,155.39,15.44]
[1729085333061,6.4873,155.48,155.39,18.6581]
[1729085333255,1.3492,155.47,155.39,18.6581]
[1729085333758,1.3492,155.47,155.41,3.2177]
[1729085334364,3.2172,155.44,155.41,3.2177]
[1729085335157,3.2167,155.47,155.43,3.2172]
[1729085335559,1.3873,155.48,155.43,3.2172]
[1729085336757,115.7800053,155.55,155.45,3.2168]
[1729085336953,5.1,155.54,155.45,15.44]
[1729085337459,3.2163,155.48,155.46,3.2166]
[1729085337659,3.2163,155.48,155.45,15.44]
[1729085338158,3.2163,155.48,155.45,18.6568]
[1729085340657,3.2166,155.47,155.44,4.6197]
[1729085340860,15.44,155.53,155.44,1.4027]
[1729085341153,3.2171,155.44,155.42,5.1]
[1729085342752,5.1,155.5,155.39,15.44]
[1729085342966,3.2175,155.43,155.4,5.1]
[1729085343163,15.44,155.49,155.38,1.4219]
[1729085343363,3.2168,155.46,155.39,5.1]
[1729085343559,2.743,155.48,155.38,6.5219]
[1729085344563,2.743,155.48,155.39,3.2181]
[1729085344761,2.743,155.48,155.39,15.44]
[1729085344960,3.2173,155.44,155.41,3.2177]
[1729085345161,3.2173,155.44,155.39,15.44]
[1729085346470,3.2173,155.44,155.41,3.2176]
[1729085349979,18.183,155.48,155.37,81.22813426]
[1729085350275,15.44,155.46,155.37,86.32813426]
[1729085350685,3.2179,155.4,155.37,89.54653426]
[1729085351180,5.1,155.45,155.37,81.22813426]
[1729085351377,15.44,155.44,155.37,65.78813426]
[1729085351578,15.44,155.44,155.36,5.1]
[1729085351884,3.2186,155.37,155.36,5.1]
[1729085352181,3.2186,155.37,155.34,8.3192]
[1729085352984,3.2186,155.37,155.34,3.2192]
[1729085353780,3.2184,155.38,155.35,3.2189]
[1729085354981,3.2187,155.37,155.33,23.7592]
[1729085355176,15.44,155.43,155.33,20.54]
[1729085355483,3.2179,155.4,155.33,23.7593]
[1729085355780,20.54,155.41,155.32,5.1]
[1729085356080,3.2194,155.33,155.32,5.1]
[1729085356282,3.2194,155.33,155.31,3.2197]
[1729085356477,3.2194,155.33,155.29,20.54]
[1729085356684,3.2194,155.33,155.3,3.2199]
[1729085357478,3.2194,155.33,155.29,3.2201]
[1729085359385,3.2194,155.33,155.3,3.22]
[1729085361586,15.44,155.36,155.27,15.44]
[1729085361784,15.44,155.36,155.27,5.1]
[1729085361986,15.44,155.35,155.25,15.44]
[1729085362291,5.1,155.34,155.26,3.2207]
[1729085363186,3.2201,155.3,155.26,3.2207]
[1729085365689,3.2201,155.3,155.25,20.54]
[1729085365690,3.2202,155.28,155.25,3.2206]
[1729085369192,3.2195,155.31,155.28,3.2201]
[1729085369381,3.2195,155.31,155.25,15.44]
[1729085369581,5.1,155.34,155.25,15.44]
[1729085369782,15.44,155.33,155.23,15.44]
[1729085369983,15.44,155.33,155.24,5.1]
[1729085370283,15.44,155.33,155.26,3.2204]
[1729085370879,3.22,155.29,155.26,3.2204]
[1729085374391,3.2197,155.3,155.27,3.2202]
[1729085374594,20.54,155.35,155.25,15.44]
[1729085374796,20.54,155.35,155.25,16.8367]
[1729085374992,3.2194,155.32,155.25,16.8367]
[1729085375394,3.2195,155.31,155.28,3.2199]
[1729085382000,2.8089,155.36,155.27,15.44]
[1729085382191,7.9089,155.36,155.27,15.44]
[1729085382896,3.2193,155.32,155.29,3.2198]
[1729085386598,100.44677522,155.39,155.28,5.1]
[1729085386903,100.44677522,155.39,155.32,15.44]
[1729085387205,3.2183,155.37,155.33,3.2189]
[1729085388002,3.2183,155.37,155.32,20.54]
[1729085388601,3.2183,155.37,155.34,3.2187]
[1729085388802,3.2178,155.4,155.32,20.54]
[1729085389008,5.1,155.41,155.34,15.44]
[1729085389205,5.1,155.41,155.36,3.2183]
[1729085389504,5.1,155.41,155.32,20.54]
[1729085389804,3.2185,155.36,155.33,3.2189]
[1729085390106,15.44,155.4,155.32,5.1]
[1729085390513,3.2183,155.37,155.34,3.2188]
[1729085398012,3.2183,155.37,155.35,9.89]
[1729085399915,3.2183,155.37,155.34,13.1088]
[1729085400219,9.89,155.39,155.35,9.89]
[1729085400524,9.89,155.38,155.32,14.99]
[1729085400912,9.89,155.38,155.28,6.4399]
[1729085400913,9.89,155.35,155.26,1.4443]
[1729085401114,5.1,155.38,155.26,1.4443]
[1729085401115,9.89,155.33,155.28,9.89]
[1729085401316,9.89,155.35,155.29,9.89]
[1729085401524,2.7498,155.37,155.32,9.89]
[1729085401714,2.7498,155.37,155.33,9.89]
[1729085402021,3.2186,155.36,155.33,3.219]
[1729085402317,2.7498,155.37,155.33,3.219]
[1729085402919,15.46,155.34,155.2,75.9434]
[1729085403121,15.46,155.32,155.23,5.1]
[1729085403324,3.2204,155.27,155.24,3.2208]
[1729085403517,15.46,155.28,155.2,1.4495]
[1729085403718,15.46,155.28,155.15,1.4372]
[1729085403719,2.8257,155.27,155.15,1.4372]
[1729085403917,3.2213,155.23,155.19,3.2218]
[1729085404419,18.2857,155.27,155.22,3.2212]
[1729085404420,3.2206,155.26,155.22,3.2212]
[1729085405420,3.2206,155.26,155.17,5.1]
[1729085405421,20.56,155.26,155.17,5.1]
[1729085405924,2.8257,155.27,155.17,5.1]
[1729085406127,2.8257,155.27,155.21,15.46]
[1729085406321,3.2208,155.25,155.21,18.6815]
[1729085406617,2.8257,155.27,155.21,15.46]
[1729085407028,3.2206,155.26,155.22,3.2213]
[1729085408227,3.2208,155.25,155.21,18.6815]
[1729085408418,2.8257,155.27,155.19,15.46]
[1729085408814,2.8257,155.27,155.17,5.1]
[1729085409020,2.8257,155.27,155.15,18.2438]
[1729085409221,5.1,155.26,155.2,15.46]
[1729085409721,2.8257,155.27,155.2,15.46]
[1729085410018,3.2206,155.26,155.22,3.2212]
[1729085410416,3.2206,155.26,155.23,3.221]
[1729085410623,1.4275,155.27,155.21,15.46]
[1729085410927,1.4275,155.27,155.15,2.7838]
[1729085410928,20.56,155.26,155.15,2.7838]
[1729085411223,6.4669,155.25,155.15,2.7838]
[1729085411426,1.3669,155.25,155.16,15.46]
[1729085411613,6.4669,155.25,155.16,15.46]
[1729085411811,3.2213,155.23,155.16,15.46]
[1729085412018,15.46,155.24,155.15,15.46]
[1729085412221,3.2221,155.19,155.15,15.46]
[1729085412425,15.46,155.24,155.15,15.46]
[1729085412721,15.46,155.24,155.13,8.3232]
[1729085412919,15.46,155.22,155.12,15.46]
[1729085413123,5.1,155.21,155.13,3.2231]
[1729085413316,5.1,155.21,155.12,15.46]
[1729085413820,3.222,155.19,155.15,3.2226]
[1729085414019,5.1,155.21,155.14,15.46]
[1729085414327,3.2216,155.21,155.16,3.2224]
[1729085414831,1.3669,155.25,155.16,15.46]
[1729085414832,6.4669,155.25,155.16,15.46]
[1729085415024,1.4334,155.26,155.21,15.46]
[1729085415222,5.1,155.29,155.21,15.46]
[1729085415417,5.1,155.29,155.2,20.56]
[1729085415622,15.46,155.3,155.22,15.46]
[1729085415821,5.1,155.3,155.22,15.46]
[1729085416824,5.1,155.3,155.24,3.2209]
[1729085417327,3.2203,155.27,155.24,3.2209]
[1729085417627,5.1,155.3,155.22,15.46]
[1729085417820,15.46,155.29,155.19,5.1]
[1729085418023,3.2215,155.22,155.19,3.2219]
[1729085418321,5.1,155.26,155.18,5.1]
[1729085418522,3.2217,155.21,155.18,5.1]
[1729085419125,3.2221,155.19,155.16,15.46]
[1729085419323,2.7776,155.25,155.16,15.46]
[1729085419723,3.2216,155.21,155.18,3.2221]
[1729085419924,2.7776,155.25,155.16,15.46]
[1729085420126,18.2376,155.25,155.16,15.46]
[1729085420821,3.2213,155.23,155.17,3.2223]
[1729085421022,18.2376,155.25,155.17,3.2223]
[1729085421422,18.2376,155.25,155.14,8.323]
[1729085421423,3.2224,155.17,155.14,8.323]
[1729085421620,5.1,155.22,155.13,81.34254242]
[1729085422030,5.1,155.22,155.13,84.56564242]
[1729085422031,3.2225,155.17,155.13,84.56564242]
[1729085422236,5.1,155.22,155.13,15.46]
[1729085422626,3.2223,155.18,155.15,3.2227]
[1729085423827,5.1,155.22,155.13,15.46]
[1729085424136,5.1,155.22,155.17,15.46]
[1729085424525,6.4903,155.25,155.16,5.1]
[1729085424731,1.3903,155.25,155.19,15.46]
[1729085424927,3.2211,155.24,155.21,18.6815]
[1729085425228,1.3903,155.25,155.19,15.46]
[1729085426024,1.3903,155.25,155.21,3.2214]
[1729085426025,3.2211,155.24,155.21,3.2214]
[1729085427029,3.2208,155.25,155.22,3.2213]
[1729085427826,5.1,155.27,155.19,15.46]
[1729085428329,3.2223,155.18,155.15,8.3228]
[1729085428831,5.1,155.23,155.15,5.1]
[1729085429237,5.1,155.23,155.16,3.2225]
[1729085429535,5.1,155.27,155.18,15.46]
[1729085429828,5.1,155.27,155.11,5.92443344]
[1729085429829,3.2209,155.24,155.2,24.73]
[1729085430230,3.2212,155.23,155.21,3.2214]
[1729085430430,5.1,155.29,155.2,24.73]
[1729085430831,5.1,155.29,155.22,3.2212]
[1729085430832,3.2205,155.27,155.22,3.2212]
[1729085431023,5.1,155.29,155.2,24.73]
[1729085431227,5.1,155.29,155.21,1.4208]
[1729085431427,3.2205,155.27,155.24,3.2209]
[1729085432036,3.2205,155.27,155.21,1.4208]
[1729085432232,7.8044,155.3,155.21,1.4208]
[1729085432531,3.2204,155.27,155.21,1.4208]
[1729085432736,3.2204,155.27,155.23,3.221]
[1729085433134,3.2204,155.27,155.21,1.4208]
[1729085433334,3.2201,155.28,155.21,1.4208]
[1729085433532,7.8044,155.3,155.21,1.4208]
[1729085433735,7.8044,155.3,155.23,3.221]
[1729085433929,3.2205,155.27,155.23,3.221]
[1729085434134,7.8044,155.3,155.21,1.4208]
[1729085434336,3.2211,155.24,155.21,1.4208]
[1729085434639,7.8044,155.3,155.21,1.4208]
[1729085434941,32.5344,155.3,155.17,24.73]
[1729085435240,24.73,155.28,155.17,5.1]
[1729085435643,3.2213,155.23,155.2,3.2217]
[1729085435834,1.4503,155.29,155.17,29.83]
[1729085436144,3.2209,155.25,155.22,3.2213]
[1729085436438,5.1,155.29,155.21,5.1]
[1729085436842,3.2204,155.27,155.24,3.2208]
[1729085437343,3.22,155.29,155.26,3.2204]
[1729085438339,2.8333,155.34,155.25,29.83]
[1729085438534,1.3323,155.38,155.28,24.73]
[1729085438738,6.4323,155.38,155.29,6.4856]
[1729085438935,3.2189,155.34,155.31,3.2194]
[1729085439336,6.7239,155.39,155.3,24.73]
[1729085439636,3.2183,155.37,155.3,24.73]
[1729085440033,3.2183,155.37,155.33,3.2189]
[1729085440944,1.3323,155.42,155.33,5.3]
[1729085441442,3.2179,155.39,155.35,3.2185]
[1729085441642,3.2179,155.39,155.33,5.3]
[1729085441947,26.0623,155.42,155.3,26.0493]
[1729085442237,26.0623,155.42,155.32,24.73]
[1729085442238,1.3323,155.42,155.32,24.73]
[1729085442442,3.2179,155.39,155.35,3.2186]
[1729085443035,3.2183,155.37,155.33,3.2189]
[1729085443237,6.6323,155.42,155.32,24.73]
[1729085443435,6.7242,155.44,155.32,24.73]
[1729085443627,3.2176,155.41,155.35,24.73]
[1729085443832,1.4242,155.44,155.35,30.03]
[1729085444254,3.2176,155.41,155.37,3.2181]
[1729085444537,3.2176,155.41,155.35,30.03]
[1729085444740,3.2174,155.42,155.38,3.2179]
[1729085444934,1.4242,155.44,155.36,1.3489]
[1729085445334,3.2177,155.4,155.36,4.5673]
[1729085445735,229.0,155.54,155.37,24.73]